fUSD/lending_fUSD_20250105
["ID","MTS","AMOUNT","RATE_DAILY","PERIOD"]
[347730000,1736086244590,-794.51,8.493e-05,2]
[347730001,1736086244600,-500.0,8.493e-05,2]
[347730002,1736086244611,-500.0,8.493e-05,2]
[347730003,1736086244622,-2104.73,8.493e-05,2]
[347730004,1736086244633,-500.0,8.493e-05,2]
[347730005,1736086244643,-500.0,8.493e-05,2]
[347730006,1736086244653,-681.56,8.493e-05,2]
[347730007,1736086244663,-500.0,8.493e-05,2]
[347730008,1736086244674,-500.0,8.493e-05,2]
[347730009,1736086244684,-500.0,8.493e-05,2]
[347730010,1736086244695,-1028.13,8.493e-05,2]
[347730011,1736086244706,-500.0,8.493e-05,2]
[347730012,1736086244716,-500.0,8.493e-05,2]
[347730013,1736086244726,-2275.82,8.493e-05,2]
[347730014,1736086244736,-799.97,8.493e-05,2]
[347730015,1736086244746,-570.35,8.493e-05,2]
[347730016,1736086244756,-500.0,8.493e-05,2]
[347730017,1736086244767,-4126.42,8.493e-05,2]
[347730018,1736086244776,-500.0,8.493e-05,2]
[347730019,1736086244787,-2155.22,8.493e-05,2]
[347730020,1736086244797,-904.05,8.493e-05,2]
[347730021,1736086244807,-1274.18,8.493e-05,2]
[347730022,1736086244818,-500.0,8.493e-05,2]
[347730023,1736086244828,-302.49210507,8.493e-05,2]
[347730024,1736086244838,-500.0,8.493e-05,2]
[347730025,1736086244850,-500.0,8.493e-05,2]
[347730026,1736086244860,-1646.52,8.493e-05,2]
[347730027,1736086244870,-649.75,8.493e-05,2]
[347730028,1736086244880,-500.0,8.493e-05,2]
[347730029,1736086244891,-500.0,8.493e-05,2]
[347730030,1736086244902,-1698.25,8.493e-05,2]
[347730031,1736086245165,-726.75,8.493e-05,2]
[347730032,1736086245175,-1175.56,8.493e-05,2]
[347730033,1736086245185,-500.0,8.493e-05,2]
[347730034,1736086245195,-1006.34,8.493e-05,2]
[347730035,1736086245204,-156.995149,8.493e-05,2]
[347730036,1736086245214,-500.0,8.493e-05,2]
[347730037,1736086245223,-500.0,8.493e-05,2]
[347730038,1736086245237,-7862.72,8.493e-05,2]
[347730039,1736086245247,-1992.9,8.493e-05,2]
[347730040,1736086245256,-500.0,8.493e-05,2]
[347730041,1736086245266,-500.0,8.493e-05,2]
[347730042,1736086245278,-500.0,8.493e-05,2]
[347730043,1736086245288,-876.69,8.493e-05,2]
[347730044,1736086245298,-500.0,8.493e-05,2]
[347730045,1736086245309,-519.46718008,8.493e-05,2]
[347730046,1736086245318,-759.27,8.493e-05,2]
[347730047,1736086245327,-500.0,8.493e-05,2]
[347730048,1736086245337,-500.0,8.493e-05,2]
[347730049,1736086245347,-500.0,8.493e-05,2]
[347730050,1736086245357,-773.96,8.493e-05,2]
[347730051,1736086245366,-5451.35,8.493e-05,2]
[347730052,1736086245376,-731.73,8.493e-05,2]
[347730053,1736086245385,-973.18,8.493e-05,2]
[347730054,1736086245395,-629.31,8.493e-05,2]
[347730055,1736086245404,-500.0,8.493e-05,2]
[347730056,1736086245414,-1242.03,8.493e-05,2]
[347730057,1736086245424,-500.0,8.493e-05,2]
[347730058,1736086245433,-500.0,8.493e-05,2]
[347730059,1736086245443,-1142.45,8.493e-05,2]
[347730060,1736086245452,-1305.75,8.493e-05,2]
[347730061,1736086245461,-765.41,8.493e-05,2]
[347730062,1736086245471,-694.64,8.493e-05,2]
[347730063,1736086245480,-636.94,8.493e-05,2]
[347730064,1736086245490,-1082.12,8.493e-05,2]
[347730065,1736086245499,-1333.19,8.493e-05,2]
[347730066,1736086245508,-500.0,8.493e-05,2]
[347730067,1736086245518,-647.45,8.493e-05,2]
[347730068,1736086245527,-791.96,8.493e-05,2]
[347730069,1736086245537,-500.0,8.493e-05,2]
[347730070,1736086245546,-500.0,8.493e-05,2]
[347730071,1736086245556,-500.0,8.493e-05,2]
[347730072,1736086245565,-500.0,8.493e-05,2]
[347730073,1736086245574,-906.7,8.493e-05,2]
[347730074,1736086245583,-513.23,8.493e-05,2]
[347730075,1736086245593,-356.5281322,8.493e-05,2]
[347730076,1736086245602,-500.0,8.493e-05,2]
[347730077,1736086245611,-744.9,8.493e-05,2]
[347730078,1736086245621,-500.0,8.493e-05,2]
[347730079,1736086245631,-469.49067961,8.493e-05,2]
[347730080,1736086245641,-500.0,8.493e-05,2]
[347730081,1736086245650,-973.52,8.493e-05,2]
[347730082,1736086245659,-500.0,8.493e-05,2]
[347730083,1736086245669,-4352.47,8.493e-05,2]
[347730084,1736086245678,-752.87,8.493e-05,2]
[347730085,1736086245687,-616.35,8.493e-05,2]
[347730086,1736086245697,-1428.44,8.493e-05,2]
[347730087,1736086245706,-1510.34,8.493e-05,2]
[347730088,1736086245716,-746.25,8.493e-05,2]
[347730089,1736086245725,-500.0,8.493e-05,2]
[347730090,1736086245735,-500.0,8.493e-05,2]
[347730091,1736086245744,-918.71,8.493e-05,2]
[347730092,1736086245753,-500.0,8.493e-05,2]
[347730093,1736086245763,-1062.74,8.493e-05,2]
[347730094,1736086245772,-500.0,8.493e-05,2]
[347730095,1736086245781,-864.92,8.493e-05,2]
[347730096,1736086245791,-500.0,8.493e-05,2]
[347730097,1736086245800,-219.6980764,8.493e-05,2]
[347730098,1736086245809,-505.07,8.493e-05,2]
[347730099,1736086245819,-500.0,8.493e-05,2]
[347730100,1736086245827,-1359.22,8.493e-05,2]
[347730101,1736086245837,-500.0,8.493e-05,2]
[347730102,1736086245847,-1013.07,8.493e-05,2]
[347730103,1736086245856,-500.0,8.493e-05,2]
[347730104,1736086245866,-1387.03,8.493e-05,2]
[347730105,1736086245875,-500.0,8.493e-05,2]
[347730106,1736086245884,-559.7493377,8.493e-05,2]
[347730107,1736086245894,-921.41,8.493e-05,2]
[347730108,1736086245903,-500.0,8.493e-05,2]
[347730109,1736086245913,-800.67,8.493e-05,2]
[347730110,1736086245922,-500.0,8.493e-05,2]
[347730111,1736086245931,-500.0,8.493e-05,2]
[347730112,1736086245941,-781.43,8.493e-05,2]
[347730113,1736086245952,-1250.77,8.493e-05,2]
[347730114,1736086245961,-500.0,8.493e-05,2]
[347730115,1736086245971,-766.06,8.493e-05,2]
[347730116,1736086245981,-955.76,8.493e-05,2]
[347730117,1736086245991,-620.83,8.493e-05,2]
[347730118,1736086246000,-838.48,8.493e-05,2]
[347730119,1736086246010,-809.23,8.493e-05,2]
[347730120,1736086246020,-897.32,8.493e-05,2]
[347730121,1736086246029,-500.0,8.493e-05,2]
[347730122,1736086246039,-907.19,8.493e-05,2]
[347730123,1736086246049,-500.0,8.493e-05,2]
[347730124,1736086246058,-658.24,8.493e-05,2]
[347730125,1736086246067,-500.0,8.493e-05,2]
[347730126,1736086246077,-1245.35,8.493e-05,2]
[347730127,1736086246087,-500.0,8.493e-05,2]
[347730128,1736086246098,-871.01,8.493e-05,2]
[347730130,1736086246110,-853.22,8.493e-05,2]
[347730131,1736086246119,-500.0,8.493e-05,2]
[347730132,1736086246128,-744.7,8.493e-05,2]
[347730133,1736086246138,-1600.74,8.493e-05,2]
[347730134,1736086246148,-500.0,8.493e-05,2]
[347730135,1736086246158,-593.39,8.493e-05,2]
[347730136,1736086246168,-500.0,8.493e-05,2]
[347730137,1736086246177,-500.0,8.493e-05,2]
[347730138,1736086246187,-500.0,8.493e-05,2]
[347730139,1736086246197,-2363.51,8.493e-05,2]
[347730140,1736086246206,-1032.01,8.493e-05,2]
[347730141,1736086246215,-1063.17,8.493e-05,2]
[347730142,1736086246226,-500.0,8.493e-05,2]
[347730143,1736086246239,-500.0,8.493e-05,2]
[347730144,1736086246249,-1177.99,8.493e-05,2]
[347730145,1736086246259,-1161.66,8.493e-05,2]
[347730146,1736086246268,-753.28,8.493e-05,2]
[347730147,1736086246279,-500.0,8.493e-05,2]
[347730148,1736086246288,-1107.81,8.493e-05,2]
[347730149,1736086246298,-978.31,8.493e-05,2]
[347730150,1736086246309,-500.0,8.493e-05,2]
[347730151,1736086246318,-607.43,8.493e-05,2]
[347730152,1736086246328,-500.0,8.493e-05,2]
[347730153,1736086246338,-802.04,8.493e-05,2]
[347730154,1736086246348,-500.0,8.493e-05,2]
[347730155,1736086246358,-622.25,8.493e-05,2]
[347730156,1736086246367,-1694.51,8.493e-05,2]
[347730157,1736086246377,-500.0,8.493e-05,2]
[347730158,1736086246387,-1454.15,8.493e-05,2]
[347730159,1736086246396,-500.0,8.493e-05,2]
[347730160,1736086246406,-500.0,8.493e-05,2]
[347730161,1736086246415,-500.0,8.493e-05,2]
[347730162,1736086246425,-1459.27,8.493e-05,2]
[347730163,1736086246435,-341.35,8.493e-05,2]
[347730164,1736086246445,-500.0,8.493e-05,2]
[347730165,1736086246455,-500.0,8.493e-05,2]
[347730166,1736086246464,-500.0,8.493e-05,2]
[347730167,1736086246474,-897.95,8.493e-05,2]
[347730168,1736086246484,-690.36,8.493e-05,2]
[347730169,1736086246495,-500.0,8.493e-05,2]
[347730170,1736086246504,-1009.99,8.493e-05,2]
[347730171,1736086246514,-500.0,8.493e-05,2]
[347730172,1736086246523,-500.0,8.493e-05,2]
[347730173,1736086246532,-500.0,8.493e-05,2]
[347730174,1736086246542,-1353.36,8.493e-05,2]
[347730175,1736086246551,-500.0,8.493e-05,2]
[347730176,1736086246560,-500.0,8.493e-05,2]
[347730177,1736086246570,-1505.77,8.493e-05,2]
[347730178,1736086246580,-877.09,8.493e-05,2]
[347730179,1736086246589,-500.0,8.493e-05,2]
[347730180,1736086246603,-500.0,8.493e-05,2]
[347730181,1736086246612,-673.85,8.493e-05,2]
[347730182,1736086246622,-500.0,8.493e-05,2]
[347730183,1736086246631,-1520.95,8.493e-05,2]
[347730184,1736086246641,-1468.66,8.493e-05,2]
[347730186,1736086246651,-500.0,8.493e-05,2]
[347730188,1736086246660,-640.51,8.493e-05,2]
[347730189,1736086246669,-500.0,8.493e-05,2]
[347730191,1736086246679,-1958.42,8.493e-05,2]
[347730192,1736086246689,-792.2,8.493e-05,2]
[347730193,1736086246698,-500.0,8.493e-05,2]
[347730194,1736086246707,-500.0,8.493e-05,2]
[347730195,1736086246717,-500.0,8.493e-05,2]
[347730196,1736086246726,-500.0,8.493e-05,2]
[347730198,1736086246736,-500.0,8.493e-05,2]
[347730199,1736086246745,-733.58,8.493e-05,2]
[347730200,1736086246756,-597.04,8.493e-05,2]
[347730201,1736086246766,-500.0,8.493e-05,2]
[347730202,1736086246775,-876.17,8.493e-05,2]
[347730203,1736086246785,-500.0,8.493e-05,2]
[347730204,1736086246795,-500.0,8.493e-05,2]
[347730205,1736086246805,-1788.82,8.493e-05,2]
[347730206,1736086246814,-500.0,8.493e-05,2]
[347730207,1736086246824,-760.3,8.493e-05,2]
[347730208,1736086246833,-296.28001704,8.493e-05,2]
[347730209,1736086246843,-500.0,8.493e-05,2]
[347730210,1736086246853,-772.33,8.493e-05,2]
[347730211,1736086246863,-3274.7,8.493e-05,2]
[347730212,1736086246872,-500.0,8.493e-05,2]
[347730213,1736086246883,-767.2,8.493e-05,2]
[347730214,1736086246893,-757.59,8.493e-05,2]
[347730215,1736086246903,-500.0,8.493e-05,2]
[347730216,1736086246913,-940.87,8.493e-05,2]
[347730217,1736086246922,-500.0,8.493e-05,2]
[347730218,1736086246932,-664.98,8.493e-05,2]
[347730219,1736086246942,-500.0,8.493e-05,2]
[347730220,1736086246951,-500.0,8.493e-05,2]
[347730221,1736086246961,-500.0,8.493e-05,2]
[347730222,1736086246971,-500.0,8.493e-05,2]
[347730223,1736086246980,-500.0,8.493e-05,2]
[347730224,1736086246990,-1703.87,8.493e-05,2]
[347730225,1736086246998,-2197.06,8.493e-05,2]
[347730226,1736086247008,-500.0,8.493e-05,2]
[347730227,1736086247017,-500.0,8.493e-05,2]
[347730228,1736086247027,-899.43,8.493e-05,2]
[347730229,1736086247036,-2373.8,8.493e-05,2]
[347730230,1736086247045,-500.0,8.493e-05,2]
[347730231,1736086247055,-500.0,8.493e-05,2]
[347730232,1736086247064,-1005.15,8.493e-05,2]
[347730233,1736086247073,-508.31,8.493e-05,2]
[347730234,1736086247083,-500.0,8.493e-05,2]
[347730235,1736086247093,-500.0,8.493e-05,2]
[347730236,1736086247106,-500.0,8.493e-05,2]
[347730237,1736086247115,-500.0,8.493e-05,2]
[347730238,1736086247124,-500.0,8.493e-05,2]
[347730239,1736086247134,-500.0,8.493e-05,2]
[347730240,1736086247143,-500.0,8.493e-05,2]
[347730241,1736086247153,-500.0,8.493e-05,2]
[347730242,1736086247162,-2889.58,8.493e-05,2]
[347730243,1736086247171,-500.0,8.493e-05,2]
[347730244,1736086247180,-500.0,8.493e-05,2]
[347730245,1736086247189,-911.64,8.493e-05,2]
[347730246,1736086247199,-2174.62,8.493e-05,2]
[347730247,1736086247208,-500.0,8.493e-05,2]
[347730248,1736086247218,-655.98,8.493e-05,2]
[347730249,1736086247228,-1428.62,8.493e-05,2]
[347730250,1736086247239,-500.0,8.493e-05,2]
[347730251,1736086247248,-500.0,8.493e-05,2]
[347730252,1736086247257,-500.0,8.493e-05,2]
[347730253,1736086247266,-500.0,8.493e-05,2]
[347730254,1736086247275,-500.0,8.493e-05,2]
[347730255,1736086247284,-704.61,8.493e-05,2]
[347730256,1736086247294,-901.88,8.493e-05,2]
[347730257,1736086247303,-599.03,8.493e-05,2]
[347730258,1736086247312,-1497.71,8.493e-05,2]
[347730259,1736086247323,-511.52,8.493e-05,2]
[347730260,1736086247332,-500.0,8.493e-05,2]
[347730261,1736086247342,-500.0,8.493e-05,2]
[347730262,1736086247355,-500.0,8.493e-05,2]
[347730263,1736086247365,-500.0,8.493e-05,2]
[347730264,1736086247374,-2359.51,8.493e-05,2]
[347730265,1736086247383,-1229.08,8.493e-05,2]
[347730266,1736086247392,-500.0,8.493e-05,2]
[347730267,1736086247402,-589.79,8.493e-05,2]
[347730268,1736086247411,-500.0,8.493e-05,2]
[347730269,1736086247420,-500.0,8.493e-05,2]
[347730270,1736086247431,-500.0,8.493e-05,2]
[347730271,1736086247440,-2408.08,8.493e-05,2]
[347730272,1736086247450,-500.0,8.493e-05,2]
[347730273,1736086247462,-500.0,8.493e-05,2]
[347730274,1736086247471,-500.0,8.493e-05,2]
[347730275,1736086247480,-560.21,8.493e-05,2]
[347730276,1736086247489,-500.0,8.493e-05,2]
[347730277,1736086247498,-1581.41,8.493e-05,2]
[347730278,1736086247510,-500.0,8.493e-05,2]
[347730279,1736086247525,-638.7,8.493e-05,2]
[347730280,1736086247539,-500.0,8.493e-05,2]
[347730281,1736086247550,-500.0,8.493e-05,2]
[347730282,1736086247563,-1032.99,8.493e-05,2]
[347730283,1736086247576,-500.0,8.493e-05,2]
[347730284,1736086247589,-500.0,8.493e-05,2]
[347730285,1736086247606,-3209.15,8.493e-05,2]
[347730286,1736086247620,-514.51,8.493e-05,2]
[347730287,1736086247632,-837.18,8.493e-05,2]
[347730288,1736086247644,-1042.34,8.493e-05,2]
[347730289,1736086247654,-504.24,8.493e-05,2]
[347730290,1736086247668,-1100.95,8.493e-05,2]
[347730291,1736086247681,-500.0,8.493e-05,2]
[347730292,1736086247693,-500.0,8.493e-05,2]
[347730293,1736086247706,-974.42,8.493e-05,2]
[347730294,1736086247719,-1961.68,8.493e-05,2]
[347730295,1736086247732,-1049.33,8.493e-05,2]
[347730296,1736086247745,-1178.04,8.493e-05,2]
[347730297,1736086247758,-1749.25,8.493e-05,2]
[347730298,1736086247771,-500.0,8.493e-05,2]
[347730299,1736086247784,-500.0,8.493e-05,2]
[347730300,1736086247796,-930.1,8.493e-05,2]
[347730301,1736086247810,-500.0,8.493e-05,2]
[347730302,1736086247822,-1008.32,8.493e-05,2]
[347730303,1736086247834,-500.0,8.493e-05,2]
[347730304,1736086247850,-500.0,8.493e-05,2]
[347730305,1736086247863,-683.59,8.493e-05,2]
[347730306,1736086247875,-500.0,8.493e-05,2]
[347730307,1736086247886,-500.0,8.493e-05,2]
[347730308,1736086247897,-2825.82,8.493e-05,2]
[347730309,1736086247909,-500.0,8.493e-05,2]
[347730310,1736086247925,-1412.79,8.493e-05,2]
[347730311,1736086247935,-500.0,8.493e-05,2]
[347730312,1736086247946,-832.75,8.493e-05,2]
[347730313,1736086247957,-500.0,8.493e-05,2]
[347730314,1736086247969,-456.94124582,8.493e-05,2]
[347730315,1736086247985,-822.24,8.493e-05,2]
[347730316,1736086247996,-500.0,8.493e-05,2]
[347730317,1736086248007,-500.0,8.493e-05,2]
[347730318,1736086248018,-500.0,8.493e-05,2]
[347730319,1736086248031,-500.0,8.493e-05,2]
[347730320,1736086248043,-1523.287914,8.493e-05,2]
[347730321,1736086248055,-500.0,8.493e-05,2]
[347730322,1736086248068,-500.0,8.493e-05,2]
[347730323,1736086248081,-589.48,8.493e-05,2]
[347730324,1736086248095,-500.0,8.493e-05,2]
[347730325,1736086248111,-870.32,8.493e-05,2]
[347730326,1736086248124,-3147.42,8.493e-05,2]
[347730327,1736086248137,-183.20530097,8.493e-05,2]
[347730328,1736086248149,-1678.38,8.493e-05,2]
[347730329,1736086248162,-855.83,8.493e-05,2]
[347730330,1736086248174,-500.0,8.493e-05,2]
[347730331,1736086248187,-511.8,8.493e-05,2]
[347730332,1736086248200,-500.0,8.493e-05,2]
[347730333,1736086248212,-905.92,8.493e-05,2]
[347730334,1736086248224,-500.0,8.493e-05,2]
[347730335,1736086248237,-500.0,8.493e-05,2]
[347730336,1736086248250,-543.49541861,8.493e-05,2]
[347730337,1736086248262,-835.26,8.493e-05,2]
[347730338,1736086248275,-500.0,8.493e-05,2]
[347730339,1736086248287,-815.39,8.493e-05,2]
[347730340,1736086248300,-500.0,8.493e-05,2]
[347730341,1736086248313,-919.05,8.493e-05,2]
[347730342,1736086248326,-521.7,8.493e-05,2]
[347730343,1736086248338,-632.46,8.493e-05,2]
[347730344,1736086248353,-500.0,8.493e-05,2]
[347730345,1736086248365,-1525.261953,8.493e-05,2]
[347730346,1736086248378,-1035.87,8.493e-05,2]
[347730347,1736086248391,-500.0,8.493e-05,2]
[347730348,1736086248404,-500.0,8.493e-05,2]
[347730349,1736086248416,-500.0,8.493e-05,2]
[347730350,1736086248428,-517.08,8.493e-05,2]
[347730351,1736086248440,-932.91,8.493e-05,2]
[347730352,1736086248452,-500.0,8.493e-05,2]
[347730353,1736086248464,-500.0,8.493e-05,2]
[347730354,1736086248476,-650.48,8.493e-05,2]
[347730355,1736086248488,-1005.75,8.493e-05,2]
[347730356,1736086248500,-500.0,8.493e-05,2]
[347730357,1736086248512,-500.0,8.493e-05,2]
[347730358,1736086248524,-1429.58,8.493e-05,2]
[347730359,1736086248538,-1158.29,8.493e-05,2]
[347730360,1736086248551,-529.27,8.493e-05,2]
[347730361,1736086248563,-519.69,8.493e-05,2]
[347730362,1736086248575,-500.0,8.493e-05,2]
[347730363,1736086248592,-1200.34,8.493e-05,2]
[347730364,1736086248606,-2958.09,8.493e-05,2]
[347730365,1736086248619,-1501.22,8.493e-05,2]
[347730366,1736086248631,-5860.52,8.493e-05,2]
[347730367,1736086248643,-500.0,8.493e-05,2]
[347730368,1736086248655,-977.58,8.493e-05,2]
[347730369,1736086248668,-500.0,8.493e-05,2]
[347730370,1736086248679,-3536.32,8.493e-05,2]
[347730371,1736086248693,-500.0,8.493e-05,2]
[347730372,1736086248705,-3332.56,8.493e-05,2]
[347730373,1736086248717,-678.69,8.493e-05,2]
[347730374,1736086248729,-628.69,8.493e-05,2]
[347730375,1736086248742,-1935.77,8.493e-05,2]
[347730376,1736086248754,-500.0,8.493e-05,2]
[347730377,1736086248766,-500.0,8.493e-05,2]
[347730378,1736086248778,-504.51,8.493e-05,2]
[347730379,1736086248791,-879.4,8.493e-05,2]
[347730380,1736086248804,-1311.86,8.493e-05,2]
[347730381,1736086248816,-1630.51,8.493e-05,2]
[347730382,1736086248829,-519.6,8.493e-05,2]
[347730383,1736086248841,-500.0,8.493e-05,2]
[347730384,1736086248857,-9308.75,8.493e-05,2]
[347730385,1736086248870,-1213.07,8.493e-05,2]
[347730386,1736086248882,-500.0,8.493e-05,2]
[347730387,1736086248895,-3435.58,8.493e-05,2]
[347730388,1736086248907,-500.0,8.493e-05,2]
[347730389,1736086248920,-500.0,8.493e-05,2]
[347730390,1736086248932,-4669.0,8.493e-05,2]
[347730391,1736086248945,-1489.62,8.493e-05,2]
[347730392,1736086248957,-1597.97,8.493e-05,2]
[347730393,1736086248970,-5012.35,8.493e-05,2]
[347730394,1736086248983,-1263.16,8.493e-05,2]
[347730395,1736086248996,-500.0,8.493e-05,2]
[347730396,1736086249008,-500.0,8.493e-05,2]
[347730397,1736086249021,-500.0,8.493e-05,2]
[347730398,1736086249033,-2311.19,8.493e-05,2]
[347730399,1736086249046,-2864.48,8.493e-05,2]
[347730400,1736086249058,-1249.3,8.493e-05,2]
[347730401,1736086249071,-513.24,8.493e-05,2]
[347730402,1736086249083,-1964.09,8.493e-05,2]
[347730403,1736086249095,-2634.69,8.493e-05,2]
[347730404,1736086249110,-1657.78,8.493e-05,2]
[347730405,1736086249123,-574.02,8.493e-05,2]
[347730406,1736086249135,-500.0,8.493e-05,2]
[347730407,1736086249147,-5089.6,8.493e-05,2]
[347730408,1736086249159,-721.81,8.493e-05,2]
[347730409,1736086249172,-500.0,8.493e-05,2]
[347730410,1736086249184,-500.0,8.493e-05,2]
[347730411,1736086249197,-2656.05,8.493e-05,2]
[347730412,1736086249209,-500.0,8.493e-05,2]
[347730413,1736086249221,-500.0,8.493e-05,2]
[347730414,1736086249235,-500.0,8.493e-05,2]
[347730415,1736086249247,-16233.05,8.493e-05,2]
[347730416,1736086249260,-500.0,8.493e-05,2]
[347730417,1736086249271,-6311.87,8.493e-05,2]
[347730418,1736086249284,-3323.05,8.493e-05,2]
[347730419,1736086249295,-500.0,8.493e-05,2]
[347730420,1736086249310,-952.05,8.493e-05,2]
[347730421,1736086249322,-500.0,8.493e-05,2]
[347730422,1736086249333,-500.0,8.493e-05,2]
[347730423,1736086249346,-500.0,8.493e-05,2]
[347730424,1736086249358,-500.0,8.493e-05,2]
[347730425,1736086249371,-2832.75,8.493e-05,2]
[347730426,1736086249384,-500.0,8.493e-05,2]
[347730427,1736086249396,-1869.42,8.493e-05,2]
[347730428,1736086249409,-500.0,8.493e-05,2]
[347730429,1736086249422,-500.0,8.493e-05,2]
[347730430,1736086249434,-1239.18,8.493e-05,2]
[347730431,1736086249447,-994.54,8.493e-05,2]
[347730432,1736086249459,-500.0,8.493e-05,2]
[347730433,1736086249471,-500.0,8.493e-05,2]
[347730434,1736086249482,-1009.28,8.493e-05,2]
[347730435,1736086249494,-1207.47,8.493e-05,2]
[347730436,1736086249506,-500.0,8.493e-05,2]
[347730437,1736086249518,-6267.41,8.493e-05,2]
[347730438,1736086249529,-1569.79,8.493e-05,2]
[347730439,1736086249540,-1589.36,8.493e-05,2]
[347730440,1736086249552,-500.0,8.493e-05,2]
[347730441,1736086249564,-500.0,8.493e-05,2]
[347730442,1736086249576,-500.0,8.493e-05,2]
[347730443,1736086249588,-500.0,8.493e-05,2]
[347730444,1736086249602,-2588.57,8.493e-05,2]
[347730445,1736086249614,-1024.17,8.493e-05,2]
[347730446,1736086249626,-7016.37,8.493e-05,2]
[347730447,1736086249637,-896.58,8.493e-05,2]
[347730448,1736086249649,-4111.43,8.493e-05,2]
[347730449,1736086249661,-500.0,8.493e-05,2]
[347730450,1736086249673,-500.0,8.493e-05,2]
[347730451,1736086249684,-671.19,8.493e-05,2]
[347730452,1736086249696,-500.0,8.493e-05,2]
[347730453,1736086249708,-4240.05,8.493e-05,2]
[347730454,1736086249720,-929.79,8.493e-05,2]
[347730455,1736086249732,-500.0,8.493e-05,2]
[347730456,1736086249744,-605.42,8.493e-05,2]
[347730457,1736086249756,-500.0,8.493e-05,2]
[347730458,1736086249767,-7031.39,8.493e-05,2]
[347730459,1736086249778,-3907.13,8.493e-05,2]
[347730460,1736086249789,-500.0,8.493e-05,2]
[347730461,1736086249801,-500.0,8.493e-05,2]
[347730462,1736086249812,-500.0,8.493e-05,2]
[347730463,1736086249824,-500.0,8.493e-05,2]
[347730464,1736086249835,-500.0,8.493e-05,2]
[347730465,1736086249847,-500.0,8.493e-05,2]
[347730466,1736086249858,-790.23,8.493e-05,2]
[347730467,1736086249870,-500.0,8.493e-05,2]
[347730468,1736086249881,-2252.76,8.493e-05,2]
[347730469,1736086249892,-1387.02,8.493e-05,2]
[347730470,1736086249903,-823.31,8.493e-05,2]
[347730471,1736086249916,-2324.58,8.493e-05,2]
[347730472,1736086249927,-500.0,8.493e-05,2]
[347730473,1736086249939,-500.0,8.493e-05,2]
[347730474,1736086249951,-716.23,8.493e-05,2]
[347730475,1736086249962,-500.0,8.493e-05,2]
[347730476,1736086249972,-3251.01,8.493e-05,2]
[347730477,1736086249984,-500.0,8.493e-05,2]
[347730478,1736086249994,-1363.75,8.493e-05,2]
[347730479,1736086250005,-500.0,8.493e-05,2]
[347730480,1736086250016,-500.0,8.493e-05,2]
[347730481,1736086250028,-596.77,8.493e-05,2]
[347730482,1736086250039,-5143.92,8.493e-05,2]
[347730483,1736086250052,-500.0,8.493e-05,2]
[347730484,1736086250063,-520.69,8.493e-05,2]
[347730485,1736086250075,-500.0,8.493e-05,2]
[347730486,1736086250085,-1331.41,8.493e-05,2]
[347730487,1736086250096,-6239.8,8.493e-05,2]
[347730488,1736086250107,-6109.07,8.493e-05,2]
[347730489,1736086250118,-500.0,8.493e-05,2]
[347730490,1736086250129,-500.0,8.493e-05,2]
[347730491,1736086250140,-500.0,8.493e-05,2]
[347730492,1736086250151,-8535.66,8.493e-05,2]
[347730493,1736086250162,-3488.16,8.493e-05,2]
[347730494,1736086250173,-2449.34,8.493e-05,2]
[347730495,1736086250184,-500.0,8.493e-05,2]
[347730496,1736086250195,-500.0,8.493e-05,2]
[347730497,1736086250207,-500.0,8.493e-05,2]
[347730498,1736086250218,-1868.76,8.493e-05,2]
[347730499,1736086250230,-500.0,8.493e-05,2]
[347730500,1736086250242,-4269.26,8.493e-05,2]
[347730501,1736086250253,-500.0,8.493e-05,2]
[347730502,1736086250265,-7071.13,8.493e-05,2]
[347730503,1736086250278,-500.0,8.493e-05,2]
[347730504,1736086250289,-500.0,8.493e-05,2]